fUST/lending_fUST_20250627
["ID","MTS","AMOUNT","RATE_DAILY","PERIOD"]
[367993188,1750985460095,-151.0,0.00021398,2]
[367993189,1750985460104,-211.044309,0.00021398,2]
[367993190,1750985460114,-211.044309,0.00021398,2]
[367993191,1750985460123,-249.737336,0.00021398,2]
[367993192,1750985460132,-249.737336,0.00021398,2]
[367993193,1750985460142,-294.015293,0.00021398,2]
[367993194,1750985460151,-294.015293,0.00021398,2]
[367993195,1750985460161,-151.0,0.000214,3]
[367993196,1750985460170,-151.0,0.00021411,2]
[367993197,1750985460179,-175.547495,0.00021411,2]
[367993198,1750985460188,-154.739229,0.00021411,2]
[367993199,1750985460198,-154.739229,0.00021411,2]
[367993200,1750985460207,-151.0,0.00021417,2]
[367993201,1750985460218,-151.0,0.00021417,2]
[367993202,1750985460227,-151.0,0.00021417,2]
[367993203,1750985460237,-151.0,0.00021417,2]
[367993204,1750985460246,-151.0,0.00021417,2]
[367993205,1750985460255,-151.0,0.00021417,2]
[367993206,1750985460264,-151.0,0.00021417,2]
[367993207,1750985460274,-469.03557909,0.00021417,2]
[367993208,1750985460283,-1500.0,0.00021428,2]
[367993209,1750985460293,-1500.0,0.00021428,2]
[367993210,1750985460302,-8000.0,0.00021442,2]
[367993211,1750985460311,-151.0,0.00021442,2]
[367993212,1750985460321,-151.0,0.00021442,2]
[367993213,1750985460330,-214.88139422,0.00021458,2]
[367993214,1750985460340,-12560.17507789,0.00021458,2]
[367993215,1750985460349,-846.92323443,0.00021459,2]
[367993216,1750985460358,-160.0,0.00021459,2]
[367993217,1750985460368,-836.92866116,0.0002146,2]
[367993218,1750985460377,-160.0,0.0002146,2]
[367993219,1750985460386,-230.24506774,0.0002146,2]
[367993220,1750985460396,-213.72380786,0.0002146,2]
[367993221,1750985460405,-160.0,0.0002146,2]
[367993222,1750985460415,-151.0,0.00021477,2]
[367993223,1750985460424,-276.441491,0.00021477,2]
[367993224,1750985460435,-276.441491,0.00021477,2]
[367993225,1750985460444,-151.0,0.00021477,2]
[367993226,1750985460453,-151.0,0.00021477,2]
[367993227,1750985460463,-151.0,0.00021478,4]
[367993228,1750985460472,-460.0,0.0002148,2]
[367993229,1750985460481,-460.0,0.0002148,2]
[367993230,1750985460490,-576.849069,0.0002148,2]
[367993231,1750985460500,-151.0,0.00021489,2]
[367993232,1750985460510,-151.0,0.00021489,2]
[367993233,1750985460519,-151.0,0.00021489,2]
[367993234,1750985460529,-297.41321609,0.00021489,2]
[367993235,1750985460538,-151.0,0.00021489,2]
[367993236,1750985460548,-151.0,0.00021489,2]
[367993237,1750985460557,-151.0,0.00021489,2]
[367993238,1750985460567,-12000.0,0.00021489,2]
[367993239,1750985460576,-4636.91213878,0.00021497,2]
[367993240,1750985460596,-1579.66959974,0.00021497,2]
[367993241,1750985460606,-423.0,0.00021497,2]
[367993242,1750985460615,-151.0,0.00021513,2]
[367993243,1750985460625,-151.0,0.00021515,2]
[367993244,1750985460636,-90.08976911,0.00021515,2]
[367993245,1750985460650,-60.91023089,0.00021515,2]
[367993246,1750985460660,-151.0,0.00021515,2]
[367993247,1750985460669,-207.993682,0.00021515,2]
[367993248,1750985460680,-241.172745,0.00021527,2]
[367993249,1750985460689,-146.11180652,0.00021527,2]
[367993251,1750985868001,173.715033,0.00013699,2]
[367993258,1750986265378,500.0,0.00024658,120]
[367993259,1750986435123,-228.7101048,0.00019077,2]
[367993260,1750986435144,-3.26439356,0.00019176,2]
[367993261,1750986443244,-296.73560644,0.00019176,2]
[367993262,1750986443264,-300.0,0.00019177,2]
[367993263,1750986443285,-300.0,0.00019177,2]
[367993264,1750986443305,-181.0,0.00019177,2]
[367993265,1750986443328,-857.61996822,0.00019177,2]
[367993266,1750986453185,-342.38003178,0.00019177,2]
[367993267,1750986453207,-300.0,0.00019177,2]
[367993268,1750986453227,-500.0,0.00019178,2]
[367993269,1750986453247,-500.0,0.00019178,2]
[367993270,1750986453268,-500.0,0.00019178,2]
[367993271,1750986453289,-368.91465513,0.00019178,2]
[367993272,1750986453309,-191.563444,0.00019178,2]
[367993273,1750986453329,-512.11,0.00019635,3]
[367993274,1750986453349,-256.05,0.00019635,3]
[367993275,1750986453370,-768.18,0.00019635,3]
[367993276,1750986453391,-1345.10258229,0.00019639,2]
[367993277,1750986453412,-460.0,0.00019639,2]
[367993278,1750986453432,-460.0,0.00019639,2]
[367993279,1750986453451,-460.0,0.00019639,2]
[367993280,1750986453474,-460.0,0.00019639,2]
[367993281,1750986453494,-460.0,0.00019639,2]
[367993282,1750986453515,-460.0,0.00019639,2]
[367993283,1750986453537,-500.0,0.00019639,2]
[367993284,1750986453559,-460.0,0.00019639,2]
[367993285,1750986453580,-461.47507191,0.00019639,2]
[367993286,1750986453600,-360.71493291,0.00019639,2]
[367993335,1750986632683,-300.0,0.00019537,2]
[367993337,1750986632692,-460.0,0.00019537,2]
[367993339,1750986632702,-25065.21163931,0.00019538,2]
[367993342,1750986632714,-42667.12737069,0.00019538,2]
[367993344,1750986632724,-344.92699966,0.00019539,2]
[367993346,1750986632733,-167.87988135,0.00019543,2]
[367993348,1750986632743,-256.05,0.00019631,3]
[367993349,1750986632754,-768.17,0.00019631,3]
[367993350,1750986632763,-535.78,0.00019638,2]
[367993352,1750986632772,-460.0,0.00019638,2]
[367993354,1750986632783,-460.0,0.00019638,2]
[367993356,1750986632792,-460.78682982,0.00019638,2]
[367993358,1750986632801,-460.0,0.00019638,2]
[367993360,1750986632810,-465.90377688,0.00019638,2]
[367993361,1750986632818,-460.0,0.00019638,2]
[367993364,1750986632828,-460.0,0.00019638,2]
[367993365,1750986632837,-460.0,0.00019638,2]
[367993367,1750986632846,-460.0,0.00019638,2]
[367993369,1750986632856,-460.0,0.00019638,2]
[367993371,1750986632866,-460.0,0.00019638,2]
[367993373,1750986632875,-460.0,0.00019638,2]
[367993375,1750986632885,-460.0,0.00019638,2]
[367993377,1750986632894,-460.0,0.00019638,2]
[367993379,1750986632903,-460.0,0.00019638,2]
[367993381,1750986632912,-562.19,0.00019638,2]
[367993382,1750986632921,-460.0,0.00019638,2]
[367993383,1750986632930,-2244.28,0.00019638,2]
[367993384,1750986632940,-439.8095611,0.00019638,2]
[367993385,1750986632949,-460.0,0.00019638,2]
[367993386,1750986632958,-460.0,0.00019638,2]
[367993387,1750986632968,-460.0,0.00019638,2]
[367993388,1750986632977,-460.0,0.00019638,2]
[367993389,1750986632987,-460.0,0.00019638,2]
[367993390,1750986632997,-460.0,0.00019638,2]
[367993391,1750986633007,-2232.04,0.00019638,2]
[367993392,1750986633018,-460.0,0.00019638,2]
[367993393,1750986633029,-99.28506709,0.00019639,2]
[367993394,1750986633039,-430.0,0.00019639,2]
[367993395,1750986633049,-460.0,0.00019639,2]
[367993396,1750986633059,-104.93217333,0.00019639,2]
[367993397,1750986633075,-281.362797,0.00019639,2]
[367993399,1750986633085,-460.0,0.00019639,2]
[367993401,1750986633094,-460.0,0.00019639,2]
[367993403,1750986633104,-460.0,0.00019639,2]
[367993405,1750986633113,-460.0,0.00019639,2]
[367993407,1750986633123,-460.0,0.00019639,2]
[367993409,1750986633133,-457.6974723,0.00019639,2]
[367993411,1750986633143,-364.99040772,0.00019639,2]
[367993413,1750986633152,-460.0,0.00019639,2]
[367993415,1750986633162,-460.0,0.00019639,2]
[367993417,1750986633172,-437.27653967,0.00019639,2]
[367993418,1750986633181,-500.0,0.00019639,2]
[367993420,1750986633191,-500.0,0.00019639,2]
[367993422,1750986633200,-315.29166661,0.00019639,2]
[367993423,1750986633210,-500.0,0.00019639,2]
[367993425,1750986633219,-647.86780566,0.00019639,2]
[367993427,1750986633229,-500.0,0.00019639,2]
[367993428,1750986633239,-500.0,0.00019639,2]
[367993430,1750986633252,-500.0,0.00019639,2]
[367993432,1750986633262,-500.0,0.00019639,2]
[367993434,1750986633272,-500.0,0.00019639,2]
[367993436,1750986633281,-500.0,0.00019639,2]
[367993437,1750986633291,-500.0,0.00019639,2]
[367993439,1750986633300,-500.0,0.00019639,2]
[367993441,1750986633309,-500.0,0.00019639,2]
[367993443,1750986633319,-500.0,0.00019639,2]
[367993444,1750986633329,-500.0,0.00019639,2]
[367993446,1750986633338,-500.0,0.00019639,2]
[367993448,1750986633349,-500.0,0.00019639,2]
[367993450,1750986633359,-500.0,0.00019639,2]
[367993451,1750986633368,-500.0,0.00019639,2]
[367993453,1750986633378,-500.0,0.00019639,2]
[367993455,1750986633388,-549.96154695,0.00019639,2]
[367993457,1750986633398,-500.0,0.00019639,2]
[367993458,1750986633408,-500.0,0.00019639,2]
[367993460,1750986633417,-460.0,0.00019639,2]
[367993461,1750986633427,-500.0,0.00019639,2]
[367993463,1750986633437,-500.0,0.00019639,2]
[367993465,1750986633446,-500.0,0.00019639,2]
[367993466,1750986633456,-211.1203388,0.00019639,2]
[367993467,1750986633466,-460.0,0.00019639,2]
[367993468,1750986633475,-2582.74,0.00019639,2]
[367993469,1750986633484,-500.0,0.00019639,2]
[367993470,1750986633494,-500.0,0.00019639,2]
[367993471,1750986633506,-500.0,0.00019639,2]
[367993472,1750986633520,-1786.09,0.00019639,2]
[367993473,1750986633529,-460.0,0.00019639,2]
[367993474,1750986633539,-891.43,0.00019639,2]
[367993475,1750986633548,-198.50818203,0.00019639,2]
[367993476,1750986633558,-736.95,0.00019639,2]
[367993477,1750986633568,-487.13,0.00019639,2]
[367993478,1750986633578,-1929.5,0.00019639,2]
[367993479,1750986633587,-2270.41,0.00019639,2]
[367993480,1750986633598,-460.0,0.00019639,2]
[367993481,1750986633607,-500.78,0.00019639,2]
[367993482,1750986633616,-653.55,0.00019639,2]
[367993483,1750986633626,-1420.43,0.00019639,2]
[367993484,1750986633636,-1998.4,0.00019639,2]
[367993485,1750986633646,-460.0,0.00019639,2]
[367993486,1750986633656,-727.79,0.00019639,2]
[367993487,1750986633666,-422.50959228,0.00019639,2]
[367993488,1750986633676,-460.0,0.00019639,2]
[367993489,1750986633685,-666.27,0.00019639,2]
[367993490,1750986633695,-248.16805665,0.00019639,2]
[367993491,1750986633704,-460.0,0.00019639,2]
[367993492,1750986633713,-616.35,0.00019639,2]
[367993493,1750986633723,-460.0,0.00019639,2]
[367993494,1750986633733,-460.0,0.00019639,2]
[367993495,1750986633743,-553.17,0.00019639,2]
[367993496,1750986633753,-460.0,0.00019639,2]
[367993497,1750986633763,-460.0,0.00019639,2]
[367993498,1750986633773,-460.0,0.00019639,2]
[367993499,1750986633783,-455.81086241,0.0001964,2]
[367993500,1750986633792,-460.0,0.0001964,2]
[367993501,1750986633802,-460.0,0.0001964,2]
[367993502,1750986633812,-460.0,0.0001964,2]
[367993503,1750986633821,-460.0,0.0001964,2]
[367993504,1750986633831,-460.0,0.0001964,2]
[367993505,1750986633840,-459.11867623,0.0001964,2]
[367993506,1750986633850,-460.0,0.0001964,2]
[367993507,1750986633859,-460.0,0.0001964,2]
[367993508,1750986633869,-460.85701846,0.0001964,2]
[367993509,1750986633879,-434.00333335,0.0001964,2]
[367993510,1750986633889,-460.0,0.0001964,2]
[367993511,1750986633898,-460.0,0.0001964,2]
[367993512,1750986633908,-460.0,0.0001964,2]
[367993513,1750986633917,-460.0,0.0001964,2]
[367993514,1750986633927,-460.0,0.0001964,2]
[367993515,1750986633937,-460.0,0.0001964,2]
[367993516,1750986633947,-446.66811015,0.0001964,2]
[367993517,1750986633956,-460.0,0.0001964,2]
[367993518,1750986633967,-460.0,0.0001964,2]
[367993519,1750986633977,-460.0,0.0001964,2]
[367993520,1750986633987,-460.0,0.0001964,2]
[367993521,1750986633996,-500.0,0.0001964,2]
[367993522,1750986634008,-500.0,0.0001964,2]
[367993523,1750986634018,-500.0,0.0001964,2]
[367993524,1750986634028,-466.37469576,0.0001964,2]
[367993525,1750986634038,-460.0,0.0001964,2]
[367993526,1750986634048,-510.42,0.0001964,2]
[367993527,1750986634058,-460.0,0.0001964,2]
[367993528,1750986634067,-460.0,0.0001964,2]
[367993529,1750986634077,-460.0,0.0001964,2]
[367993530,1750986634087,-460.0,0.0001964,2]
[367993531,1750986634097,-460.0,0.0001964,2]
[367993532,1750986634107,-460.0,0.0001964,2]
[367993533,1750986634119,-460.0,0.0001964,2]
[367993534,1750986634128,-460.0,0.0001964,2]
[367993535,1750986634138,-460.0,0.0001964,2]
[367993536,1750986634148,-460.0,0.0001964,2]
[367993537,1750986634158,-460.0,0.0001964,2]
[367993538,1750986634168,-460.0,0.0001964,2]
[367993539,1750986634178,-460.0,0.0001964,2]
[367993540,1750986634188,-460.0,0.0001964,2]
[367993541,1750986634197,-460.0,0.0001964,2]
[367993542,1750986634207,-460.0,0.0001964,2]
[367993543,1750986634216,-500.0,0.0001964,2]
[367993544,1750986634225,-460.0,0.0001964,2]
[367993545,1750986634235,-460.0,0.0001964,2]
[367993546,1750986634245,-460.0,0.0001964,2]
[367993547,1750986634255,-460.31664621,0.0001964,2]
[367993548,1750986634264,-460.0,0.0001964,2]
[367993549,1750986634274,-285.77200922,0.0001964,2]
[367993550,1750986634284,-460.0,0.0001964,2]
[367993551,1750986634294,-460.0,0.0001964,2]
[367993552,1750986634303,-460.0,0.0001964,2]
[367993553,1750986634313,-460.0,0.0001964,2]
[367993554,1750986634323,-460.0,0.0001964,2]
[367993555,1750986634332,-513.58219566,0.0001964,2]
[367993556,1750986634341,-460.0,0.0001964,2]
[367993557,1750986634351,-460.0,0.0001964,2]
[367993558,1750986634361,-460.0,0.0001964,2]
[367993559,1750986634370,-460.0,0.0001964,2]
[367993560,1750986634380,-460.0,0.0001964,2]
[367993561,1750986634390,-460.0,0.0001964,2]
[367993562,1750986634399,-460.0,0.0001964,2]
[367993563,1750986634409,-460.0,0.0001964,2]
[367993564,1750986634419,-460.0,0.0001964,2]
[367993565,1750986634433,-460.0,0.0001964,2]
[367993566,1750986634443,-460.0,0.0001964,2]
[367993567,1750986634452,-460.0,0.0001964,2]
[367993568,1750986634462,-460.0,0.0001964,2]
[367993569,1750986634471,-235.9965194,0.0001964,2]
[367993570,1750986634481,-463.41204926,0.0001964,2]
[367993571,1750986634490,-460.0,0.0001964,2]
[367993572,1750986634500,-460.0,0.0001964,2]
[367993573,1750986634510,-460.0,0.0001964,2]
[367993574,1750986634520,-189.97514257,0.0001964,2]
[367993575,1750986634531,-460.0,0.0001964,2]
[367993576,1750986634541,-460.86255162,0.0001964,2]
[367993577,1750986634551,-460.0,0.0001964,2]
[367993578,1750986634561,-460.0,0.0001964,2]
[367993579,1750986634572,-460.0,0.0001964,2]
[367993580,1750986634581,-460.0,0.0001964,2]
[367993581,1750986634591,-460.0,0.0001964,2]
[367993582,1750986634601,-460.0,0.0001964,2]
[367993583,1750986634611,-460.0,0.0001964,2]
[367993584,1750986634621,-42.76510144,0.0001964,2]
[367993585,1750986634635,-266.512882,0.0001964,2]
[367993586,1750986634656,-163.72201656,0.0001964,2]
[367993587,1750986634665,-91.85042135,0.0001964,2]
[367993604,1750986638598,-500.0,0.00019639,2]
[367993605,1750986638608,-813.05957865,0.0001964,2]
[367993607,1750986638618,-460.0,0.0001964,2]
[367993609,1750986638628,-403.34014592,0.0001964,2]
[367993611,1750986638638,-703.66,0.0001964,2]
[367993613,1750986638647,-406.36894651,0.0001964,2]
[367993614,1750986638659,-53.63105349,0.0001964,2]
[367993615,1750986638668,-212.81375891,0.0001964,2]
[367993616,1750986638707,-247.18624109,0.0001964,2]
[367993617,1750986638717,-460.0,0.0001964,2]
[367993618,1750986638727,-460.0,0.0001964,2]
[367993619,1750986638736,-460.0,0.0001964,2]
[367993620,1750986638745,-460.0,0.0001964,2]
[367993621,1750986638755,-120.37315975,0.0001964,2]
[367993622,1750986638787,-339.62684025,0.0001964,2]
[367993623,1750986638796,-114.0455952,0.0001964,2]
[367993727,1750986641246,-25.77494426,0.0001964,2]
[367993994,1750986643774,-460.0,0.00019537,2]
[367993996,1750986643784,-28.44838508,0.00019637,2]
[367993998,1750986643795,-270.9325,0.00019637,2]
[367994000,1750986643815,-200.61911492,0.00019637,2]
[367994002,1750986643824,-303.68088508,0.00019637,2]
[367994005,1750986643840,-196.31911492,0.00019637,2]
[367994007,1750986643849,-394.44017188,0.00019637,2]
[367994009,1750986643858,-460.0,0.00019639,2]
[367994011,1750986643868,-320.17946054,0.0001964,2]
[367994013,1750986643876,-460.0,0.0001964,2]
[367994015,1750986643886,-460.0,0.0001964,2]
[367994017,1750986643897,-460.0,0.0001964,2]
[367994019,1750986643906,-460.0,0.0001964,2]
[367994021,1750986643916,-461.33785418,0.0001964,2]
[367994023,1750986643925,-460.0,0.0001964,2]
[367994025,1750986643935,-460.0,0.0001964,2]
[367994027,1750986643945,-1292.87,0.0001964,2]
[367994029,1750986643954,-460.0,0.0001964,2]
[367994031,1750986643963,-460.0,0.0001964,2]
[367994033,1750986643973,-346.52855423,0.0001964,2]
[367994035,1750986643982,-460.0,0.0001964,2]
[367994037,1750986643991,-460.0,0.0001964,2]
[367994039,1750986643999,-460.0,0.0001964,2]
[367994041,1750986644009,-460.0,0.0001964,2]
[367994043,1750986644018,-500.0,0.0001964,2]
[367994045,1750986644027,-460.0,0.0001964,2]
[367994047,1750986644037,-460.0,0.0001964,2]
[367994049,1750986644046,-881.82,0.0001964,2]
[367994051,1750986644055,-713.42,0.0001964,2]
[367994053,1750986644065,-460.0,0.0001964,2]
[367994055,1750986644075,-567.23,0.0001964,2]
[367994057,1750986644084,-460.0,0.0001964,2]
[367994059,1750986644093,-221.46484425,0.0001964,2]
[367994061,1750986644107,-238.53515575,0.0001964,2]
[367994063,1750986644116,-460.0,0.0001964,2]
[367994065,1750986644125,-1194.17,0.0001964,2]
[367994067,1750986644134,-460.11583239,0.0001964,2]
[367994069,1750986644143,-573.62485301,0.0001964,2]
[367994072,1750986644163,-184.59514699,0.0001964,2]
[367994074,1750986644172,-460.0,0.0001964,2]
[367994076,1750986644181,-817.82,0.0001964,2]
[367994078,1750986644190,-460.0,0.0001964,2]
[367994079,1750986644199,-767.6,0.0001964,2]
[367994082,1750986644208,-485.6,0.0001964,2]
[367994083,1750986644218,-460.0,0.0001964,2]
[367994085,1750986644227,-386.66980465,0.0001964,2]
[367994087,1750986644235,-460.0,0.0001964,2]
[367994089,1750986644244,-460.0,0.0001964,2]
[367994091,1750986644254,-460.0,0.0001964,2]
[367994093,1750986644264,-460.0,0.0001964,2]
[367994095,1750986644274,-566.07,0.0001964,2]
[367994097,1750986644283,-460.0,0.0001964,2]
[367994099,1750986644292,-460.0,0.0001964,2]
[367994101,1750986644302,-735.32,0.0001964,2]
[367994103,1750986644311,-432.54659941,0.0001964,2]
[367994105,1750986644320,-352.74746823,0.0001964,2]
[367994107,1750986644330,-460.0,0.0001964,2]
[367994109,1750986644338,-460.0,0.0001964,2]
[367994111,1750986644348,-372.74742083,0.0001964,2]
[367994113,1750986644358,-460.0,0.0001964,2]
[367994115,1750986644367,-31.28355989,0.0001964,2]
[367994118,1750986644379,-428.71644011,0.0001964,2]
[367994120,1750986644389,-460.0,0.0001964,2]
[367994122,1750986644398,-31.28355989,0.0001964,2]
[367994127,1750986644445,-29.07435578,0.0001964,2]
[367994376,1750986646692,-399.64208433,0.0001964,2]
[367994378,1750986646702,-387.85791567,0.0001964,2]
[367994384,1750986646753,-72.14208433,0.0001964,2]
[367994386,1750986646763,-612.47,0.0001964,2]
[367994388,1750986646773,-460.0,0.0001964,2]
[367994390,1750986646782,-460.0,0.0001964,2]
[367994392,1750986646791,-460.0,0.0001964,2]
[367994393,1750986646801,-601.94850018,0.0001964,2]
[367994396,1750986646811,-460.0,0.0001964,2]
[367994398,1750986646820,-460.0,0.0001964,2]
[367994400,1750986646830,-460.0,0.0001964,2]
[367994402,1750986646839,-460.0,0.0001964,2]
[367994404,1750986646848,-155.83589999,0.0001964,2]
[367994406,1750986646857,-460.0,0.0001964,2]
[367994408,1750986646867,-460.0,0.0001964,2]
[367994410,1750986646876,-460.0,0.0001964,2]
[367994412,1750986646885,-460.0,0.0001964,2]
[367994413,1750986646896,-460.0,0.0001964,2]
[367994414,1750986646905,-558.93,0.0001964,2]
[367994415,1750986646915,-1022.13,0.0001964,2]
[367994416,1750986646923,-467.98695914,0.0001964,2]
[367994417,1750986646933,-460.0,0.0001964,2]
[367994418,1750986646942,-500.0,0.0001964,2]
[367994419,1750986646951,-392.32,0.0001964,2]
[367994420,1750986646960,-460.0,0.0001964,2]
[367994421,1750986646969,-460.0,0.0001964,2]
[367994422,1750986646978,-460.0,0.0001964,2]
[367994423,1750986646987,-432.71120242,0.0001964,2]
[367994424,1750986646997,-460.0,0.0001964,2]
[367994425,1750986647006,-690.73,0.0001964,2]
[367994426,1750986647016,-460.0,0.0001964,2]
[367994427,1750986647025,-460.0,0.0001964,2]
[367994428,1750986647034,-460.0,0.0001964,2]
[367994429,1750986647043,-460.0,0.0001964,2]
[367994430,1750986647052,-460.0,0.0001964,2]
[367994431,1750986647062,-460.0,0.00019641,2]
[367994432,1750986647071,-460.0,0.00019641,2]
[367994433,1750986647079,-460.0,0.00019641,2]
[367994434,1750986647089,-460.0,0.00019641,2]
[367994435,1750986647098,-460.0,0.00019641,2]
[367994436,1750986647106,-460.0,0.00019641,2]
[367994437,1750986647115,-460.0,0.00019641,2]
[367994438,1750986647124,-597.85225218,0.00019641,2]
[367994439,1750986647133,-460.0,0.00019641,2]
[367994440,1750986647142,-460.0,0.00019641,2]
[367994441,1750986647151,-460.0,0.00019641,2]
[367994442,1750986647160,-460.0,0.00019641,2]
[367994443,1750986647169,-460.0,0.00019641,2]
[367994444,1750986647178,-460.0,0.00019641,2]
[367994445,1750986647187,-460.90932806,0.00019641,2]
[367994446,1750986647196,-460.0,0.00019641,2]
[367994447,1750986647205,-460.0,0.00019641,2]
[367994448,1750986647214,-460.0,0.00019641,2]
[367994449,1750986647223,-165.87209766,0.00019641,2]
[367994450,1750986647232,-460.0,0.00019641,2]
[367994451,1750986647241,-460.0,0.00019641,2]
[367994452,1750986647250,-460.0,0.00019641,2]
[367994453,1750986647260,-460.0,0.00019641,2]
[367994455,1750986647271,-460.0,0.00019641,2]
[367994457,1750986647280,-460.0,0.00019641,2]
[367994458,1750986647289,-460.0,0.00019641,2]
[367994460,1750986647298,-460.0,0.00019641,2]
[367994462,1750986647307,-460.0,0.00019641,2]
[367994464,1750986647316,-460.0,0.00019641,2]
[367994466,1750986647326,-460.0,0.00019641,2]
[367994468,1750986647336,-519.93,0.00019641,2]
[367994470,1750986647344,-457.14149119,0.00019641,2]
[367994472,1750986647354,-460.0,0.00019641,2]
[367994474,1750986647363,-500.0,0.00019641,2]
[367994476,1750986647372,-793.88,0.00019641,2]
[367994478,1750986647382,-241.9948598,0.00019641,2]
[367994517,1750986647825,-364.7551402,0.00019641,2]
[367994518,1750986647834,-460.0,0.00019641,2]
[367994519,1750986647843,-300.41049513,0.00019641,2]
[367994616,1750986649108,-159.58950487,0.00019641,2]
[367994618,1750986649119,-51.89505591,0.00019641,2]
[367994868,1750986964557,173.715033,0.00013699,2]
[367994873,1750987754246,-431.16674921,0.00018986,2]
[367994874,1750987754267,-184.390969,0.00019178,2]
[367994875,1750987754286,-286.23522551,0.00019272,2]
[367994877,1750987761316,-146.56157719,0.00019272,2]
[367994878,1750987761337,-339.8237948,0.00019435,2]
[367994879,1750987761358,-548.92582801,0.00019444,2]
[367994882,1750987767107,-89.92417199,0.00019444,2]
[367994883,1750987767127,-300.0,0.00019532,2]
[367994884,1750987767149,-300.0,0.00019532,2]
[367994885,1750987767170,-300.0,0.00019532,2]
[367994886,1750987767191,-5708.7156605,0.00019533,2]
[367994887,1750987767212,-300.0,0.00019533,2]
[367994888,1750987767232,-300.0,0.00019533,2]
[367994889,1750987767253,-300.0,0.00019533,2]
[367994890,1750987767274,-1200.0,0.00019533,2]
[367994891,1750987767294,-441.12532295,0.00019533,2]
[367994892,1750987767316,-2150.77,0.00019534,2]
[367994893,1750987767337,-460.0,0.00019534,2]
[367994894,1750987767357,-460.0,0.00019534,2]
[367994895,1750987767377,-392.78897617,0.00019534,2]
[367994896,1750987767397,-460.0,0.00019534,2]
[367994897,1750987767417,-460.0,0.00019534,2]
[367994898,1750987767437,-460.0,0.00019534,2]
[367994899,1750987767458,-460.0,0.00019534,2]
[367994900,1750987767477,-460.0,0.00019534,2]
[367994901,1750987767500,-2708.09,0.00019534,2]
[367994902,1750987767520,-460.0,0.00019534,2]
[367994903,1750987767541,-460.0,0.00019534,2]
[367994904,1750987767562,-887.52,0.00019534,2]
[367994905,1750987767582,-420.0,0.00019534,2]
[367994906,1750987767601,-460.0,0.00019534,2]
[367994907,1750987767622,-522.36,0.00019534,2]
[367994908,1750987767642,-460.0,0.00019534,2]
[367994909,1750987767663,-460.0,0.00019534,2]
[367994910,1750987767684,-460.0,0.00019534,2]
[367994911,1750987767704,-460.0,0.00019534,2]
[367994912,1750987767724,-460.0,0.00019534,2]
[367994913,1750987767747,-460.0,0.00019534,2]
[367994914,1750987767769,-833.33,0.00019534,2]
[367994915,1750987767791,-2051.26,0.00019534,2]
[367994916,1750987767811,-572.46,0.00019534,2]
[367994917,1750987767832,-1635.53,0.00019534,2]
[367994918,1750987767852,-460.0,0.00019534,2]
[367994919,1750987767872,-460.0,0.00019534,2]
[367994920,1750987767891,-460.0,0.00019534,2]
[367994921,1750987767913,-533.27,0.00019534,2]
[367994922,1750987767933,-460.0,0.00019534,2]
[367994923,1750987767955,-333.57905693,0.00019534,2]